fUSD/lending_fUSD_20240216
["ID","MTS","AMOUNT","RATE_DAILY","PERIOD"]
[314232327,1708104676145,-184.14444376,0.00042,2]
[314232328,1708104676154,-184.14444376,0.00042,2]
[314232329,1708104676164,-184.14444376,0.00042,2]
[314232330,1708104676173,-184.14444376,0.00042,2]
[314232331,1708104676182,-184.14444376,0.00042,2]
[314232332,1708104676191,-184.14444376,0.00042,2]
[314232333,1708104676200,-30.0636802,0.00042,2]
[314232334,1708104676220,-154.08076356,0.00042,2]
[314232335,1708104676229,-184.14444376,0.00042,2]
[314232336,1708104676238,-184.14444376,0.00042,2]
[314232337,1708104676247,-184.14444376,0.00042,2]
[314232338,1708104676257,-40.35832018,0.00042,2]
[314232341,1708104704611,1429.38162248,0.00030405,28]
[314232344,1708104717821,250.0,0.00034257,111]
[314232345,1708104729449,455.57134955,0.00036538,13]
[314232346,1708104894443,17103.0,0.000348,3]
[314232347,1708104894991,15392.0,0.000348,3]
[314232348,1708104954369,2252.0,0.000348,3]
[314232350,1708105030053,3104.20098278,0.00036546,13]
[314232351,1708105227252,4882.2350284,0.00037,2]
[314232352,1708105452826,67021.43782824,0.000304,120]
[314232353,1708105452852,400000.0,0.000304,120]
[314232354,1708105507501,31199.9643464,0.0003,120]
[314232355,1708105507525,1778.59782536,0.0003,120]
[314232362,1708105832234,-625.90252472,0.00034059,3]
[314232363,1708105832244,-4175.35,0.00034257,4]
[314232364,1708105832253,-4212.86,0.00034531,2]
[314232366,1708105832263,-192.36254521,0.000359,2]
[314232368,1708105832272,-250.0,0.00036,120]
[314232369,1708105832282,-1880.89128066,0.00036546,13]
[314232370,1708105832291,-1422.4601958,0.00036546,13]
[314232371,1708105832301,-176.42,0.00036883,2]
[314232372,1708105832311,-206.0,0.00036883,2]
[314232373,1708105832320,-250.0,0.00037031,2]
[314232374,1708105832330,-175.28,0.00037031,2]
[314232375,1708105832339,-330.54,0.00037222,2]
[314232376,1708105832353,-250.0,0.00037248,111]
[314232377,1708105832362,-150.0,0.00037251,2]
[314232378,1708105832372,-166.02,0.00037251,2]
[314232379,1708105832381,-1188.68,0.00037276,2]
[314232380,1708105832392,-155.67,0.00037319,2]
[314232381,1708105832402,-202.29,0.00037319,2]
[314232382,1708105832412,-10000.0,0.00037336,37]
[314232383,1708105832422,-4992.9237905,0.00037336,2]
[314232384,1708105832434,-15416.5162095,0.00037336,2]
[314232385,1708105832444,-150.0,0.00037489,2]
[314232386,1708105832454,-4814.60029593,0.0003749,2]
[314232387,1708105832474,-954.99232549,0.0003749,2]
[314232388,1708105832486,-2304.11621744,0.0003749,2]
[314232389,1708105832498,-862.90197581,0.0003749,2]
[314232390,1708105832511,-577.89161795,0.0003749,2]
[314232391,1708105832527,-895.31631217,0.0003749,2]
[314232392,1708105832544,-8100.79182278,0.0003749,2]
[314232394,1708105832578,-323.75358582,0.0003749,2]
[314232396,1708105832590,-3939.07253238,0.0003749,2]
[314232399,1708105832603,-474.43698901,0.0003749,2]
[314232458,1708105838308,-250.0,0.00036906,2]
[314232459,1708105838321,-652.12632522,0.0003749,2]
[314232460,1708105838333,-2400.14,0.00037552,2]
[314232461,1708105838347,-500.0,0.00037611,2]
[314232462,1708105838357,-400.0,0.00037664,2]
[314232463,1708105838367,-2705.0,0.00037904,2]
[314232464,1708105838378,-2000.0,0.00037904,2]
[314232465,1708105838389,-260.2545684,0.00038,120]
[314232466,1708105838399,-188.4559,0.00038251,2]
[314232467,1708105838410,-777.27964437,0.000383,2]
[314232468,1708105838420,-200.0,0.00038342,2]
[314232469,1708105838430,-294.5,0.00038351,2]
[314232470,1708105838442,-151.32,0.00038356,2]
[314232471,1708105838453,-366.48,0.00038356,15]
[314232472,1708105838462,-254.37,0.00038356,2]
[314232473,1708105838474,-408.06,0.0003838,10]
[314232474,1708105838485,-58193.38271743,0.0003839,2]
[314232475,1708105838518,-4664.12084171,0.0003839,2]
[314232476,1708105838537,-1254.48307782,0.0003839,2]
[314232477,1708105838584,-4113.69647072,0.0003839,2]
[314232481,1708105840837,-340.05,0.0003838,10]
[314232482,1708105840847,-24750.49849232,0.0003839,2]
[314232483,1708105840858,-157.63799995,0.00038479,2]
[314232484,1708105840867,-220768.91234756,0.000385,2]
[314232486,1708105840896,-7400.70839907,0.000385,2]
[314232487,1708105840959,-429.54697871,0.000385,2]
[314232488,1708105840971,-1485.3645123,0.000385,2]
[314232489,1708105841013,-1424.40289611,0.000385,2]
[314232490,1708105841776,-26487.81259213,0.000385,2]
[314232491,1708105841786,-777.27964437,0.00038529,2]
[314232492,1708105841795,-777.27964437,0.00038758,2]
[314232493,1708105841805,-168.4024985,0.00038858,12]
[314232494,1708105841815,-488.6333,0.00038868,2]
[314232495,1708105841824,-7518.2684,0.00038868,2]
[314232497,1708105841834,-1161.0181,0.00038868,2]
[314232498,1708105841844,-222.989,0.00038868,3]
[314232499,1708105841854,-2017.7687,0.00038868,2]
[314232500,1708105841863,-1000.0,0.00038868,2]
[314232501,1708105841873,-200.0,0.0003887,2]
[314232502,1708105841882,-210.25096485,0.00038958,2]
[314232503,1708105841892,-327.38504084,0.00038958,14]
[314232504,1708105841902,-693.15683604,0.00038958,2]
[314232505,1708105841911,-84423.2449229,0.00038958,3]
[314232506,1708105841921,-214.8652949,0.00038958,2]
[314232507,1708105841930,-2813.88,0.00038958,2]
[314232508,1708105841939,-153.34188006,0.00038965,2]
[314232509,1708105841950,-382.8555,0.00038968,2]
[314232510,1708105841959,-13499.1843,0.00038968,2]
[314232511,1708105841968,-1000.0,0.00038968,2]
[314232512,1708105841978,-76764.51248001,0.00038968,2]
[314232514,1708105843211,-902.71804773,0.00038968,2]
[314232515,1708105843262,-1012.75295052,0.00038968,2]
[314232516,1708105843274,-3309.98203521,0.00038968,2]
[314232517,1708105843286,-18010.03448653,0.00038968,2]
[314232518,1708105843296,-16117.77904366,0.00038968,2]
[314232519,1708105843307,-4941.41922878,0.00038968,2]
[314232520,1708105843632,-4965.2603,0.00038968,2]
[314232521,1708105843646,-4982.6,0.00038968,2]
[314232522,1708105843670,-1164.51785498,0.00038968,2]
[314232524,1708105843683,-8662.03786109,0.00038968,2]
[314232525,1708105843695,-15960.27927854,0.00038968,2]
[314232526,1708105843710,-38466.04123913,0.00038968,2]
[314232527,1708105843726,-4020.23484236,0.00038968,2]
[314232528,1708105843738,-342.7239389,0.00038968,2]
[314232529,1708105843749,-4520.485673,0.00038968,2]
[314232538,1708105846256,-2951.50740627,0.00038968,2]
[314232539,1708105846268,-8259.34420829,0.00038968,2]
[314232540,1708105846314,-10163.33245386,0.00038968,2]
[314232541,1708105846505,-1959.5962472,0.00038968,2]
[314232542,1708105846518,-2248.46080941,0.00038968,2]
[314232543,1708105846529,-3153.81405,0.00038968,2]
[314232544,1708105846541,-2183.4541575,0.00038968,2]
[314232545,1708105846553,-5683.971706,0.00038968,2]
[314232546,1708105846565,-1503.3049995,0.00038968,2]
[314232547,1708105846577,-1780.05609,0.00038968,2]
[314232555,1708105846688,-84571.38001153,0.00038968,2]
[314232557,1708105846698,-155.35,0.00039058,2]
[314232559,1708105846707,-155.35,0.00039349,2]
[314232561,1708105846717,-549.49629056,0.00039458,11]
[314232562,1708105846727,-179.86,0.00039498,2]
[314232564,1708105846736,-155.35,0.0003964,2]
[314232566,1708105846745,-11243.77,0.00039783,2]
[314232568,1708105846755,-431.14,0.00039783,2]
[314232569,1708105846764,-155.35,0.00039931,2]
[314232570,1708105846776,-157.63799995,0.00040007,2]
[314232571,1708105846786,-155.35,0.00040222,2]
[314232572,1708105846795,-1202.09,0.00040382,2]
[314232573,1708105846805,-155.35,0.00040512,2]
[314232574,1708105846815,-155.35,0.00040803,2]
[314232575,1708105846825,-154.02,0.000409,4]
[314232576,1708105846834,-154.02,0.000409,4]
[314232577,1708105846844,-154.02,0.000409,4]
[314232578,1708105846853,-154.02,0.000409,4]
[314232579,1708105846867,-154.02,0.000409,4]
[314232580,1708105846877,-154.02,0.000409,4]
[314232581,1708105846887,-154.02,0.000409,4]
[314232582,1708105846896,-154.02,0.000409,4]
[314232583,1708105846906,-155.35,0.00041094,2]
[314232584,1708105846915,-205.67,0.000411,2]
[314232585,1708105846925,-210.0,0.00041238,4]
[314232586,1708105846935,-180.0,0.00041372,2]
[314232587,1708105846944,-699.46,0.00041452,2]
[314232588,1708105846954,-231.10656455,0.00041522,4]
[314232589,1708105846963,-157.63799995,0.00041534,3]
[314232590,1708105846972,-151.32,0.00041553,2]
[314232591,1708105846981,-3000.0,0.000417,48]
[314232592,1708105846990,-2458.0,0.000417,87]
[314232593,1708105846999,-3000.0,0.0004171,48]
[314232594,1708105847011,-3000.0,0.0004172,48]
[314232595,1708105847022,-3000.0,0.0004173,48]
[314232596,1708105847032,-3000.0,0.0004174,48]
[314232597,1708105847042,-3000.0,0.0004175,48]
[314232598,1708105847052,-4824.926585,0.0004176,48]
[314232599,1708105847062,-965.23195016,0.00042,7]
[314232600,1708105847072,-366.48,0.00042092,15]
[314232601,1708105847082,-400.0,0.00042372,2]
[314232602,1708105847091,-84423.2449229,0.00042495,9]
[314232603,1708105847103,-150.0,0.00042498,7]
[314232604,1708105847115,-2996.61308276,0.00042501,8]
[314232605,1708105847125,-210.49728641,0.00042501,7]
[314232606,1708105847136,-167.88651363,0.00042501,8]
[314232607,1708105847146,-567.97326563,0.00042554,8]
[314232608,1708105847157,-2012.65544663,0.00042584,5]
[314232609,1708105847167,-291.46980123,0.0004259,8]
[314232610,1708105847176,-5800.0,0.000427,2]
[314232611,1708105847185,-327.38504082,0.00042927,19]
[314232612,1708105847195,-154.02,0.00043,4]
[314232613,1708105847204,-154.02,0.00043,4]
[314232614,1708105847214,-154.02,0.00043,4]
[314232615,1708105847223,-154.02,0.00043,4]
[314232616,1708105847232,-154.02,0.00043,4]
[314232617,1708105847241,-154.02,0.00043,4]
[314232618,1708105847251,-154.02,0.00043,4]
[314232619,1708105847260,-154.02,0.00043,4]
[314232620,1708105847270,-202.02,0.00043046,7]
[314232621,1708105847279,-157.63799995,0.00043062,5]
[314232622,1708105847288,-2113.22,0.00043102,2]
[314232623,1708105847297,-1000.0,0.000436,2]
[314232624,1708105847306,-699.46,0.00043716,2]
[314232625,1708105847315,-152.0,0.00044106,3]
[314232626,1708105847324,-600.0,0.00044197,2]
[314232627,1708105847334,-157.63799995,0.0004459,6]
[314232628,1708105847343,-151.32,0.00044749,2]
[314232629,1708105847353,-1339.21,0.00044888,2]
[314232630,1708105847366,-1709.0,0.000449,2]
[314232631,1708105847375,-2703.8,0.00044931,105]
[314232632,1708105847385,-404.90396778,0.00045,4]
[314232633,1708105847394,-14095.5070425,0.00045,30]
[314232634,1708105847402,-154.02,0.000452,5]
[314232635,1708105847411,-154.02,0.000452,5]
[314232636,1708105847421,-154.02,0.000452,5]
[314232637,1708105847430,-154.02,0.000452,5]
[314232638,1708105847439,-154.02,0.000452,5]
[314232639,1708105847448,-154.02,0.000452,5]
[314232640,1708105847458,-154.02,0.000452,5]
[314232641,1708105847467,-154.02,0.000452,5]
[314232642,1708105847476,-293.0,0.00045362,4]
[314232643,1708105847486,-153.43,0.0004566,5]
[314232644,1708105847496,-500.0,0.00045701,4]
[314232645,1708105847507,-500.0,0.0004571,4]
[314232646,1708105847516,-500.0,0.00045718,4]
[314232647,1708105847526,-500.0,0.00045727,4]
[314232648,1708105847536,-500.0,0.00045736,4]
[314232649,1708105847546,-500.0,0.00045745,4]
[314232650,1708105847556,-500.0,0.00045754,4]
[314232651,1708105847567,-500.0,0.00045762,4]
[314232652,1708105847576,-500.0,0.00045771,4]
[314232653,1708105847593,-500.0,0.0004578,4]
[314232654,1708105847609,-500.0,0.00045789,4]
[314232655,1708105847619,-500.0,0.00045798,4]
[314232656,1708105847629,-500.0,0.00045806,4]
[314232657,1708105847638,-500.0,0.00045815,4]
[314232658,1708105847648,-500.0,0.00045824,4]
[314232659,1708105847658,-366.48,0.00045828,15]
[314232660,1708105847668,-500.0,0.00045833,4]
[314232661,1708105847678,-500.0,0.00045842,4]
[314232662,1708105847688,-500.0,0.0004585,4]
[314232663,1708105847697,-500.0,0.00045859,4]
[314232664,1708105847707,-500.0,0.00045868,4]
[314232665,1708105847717,-500.0,0.00045877,4]
[314232666,1708105847728,-500.0,0.00045886,4]
[314232667,1708105847737,-500.0,0.00045894,4]
[314232668,1708105847747,-500.0,0.00045903,4]
[314232669,1708105847757,-500.0,0.00045912,4]
[314232670,1708105847767,-699.46,0.00045979,2]
[314232671,1708105847777,-1000.0,0.00046,120]
[314232672,1708105847786,-157.63799995,0.00046117,8]
[314232673,1708105847797,-1000.0,0.000463,2]
[314232674,1708105847806,-6879.71003742,0.00046383,2]
[314232675,1708105847816,-327.38504082,0.00046896,24]
[314232676,1708105847826,-200.0,0.00046969,39]
[314232677,1708105847835,-200.0,0.00046969,38]
[314232678,1708105847846,-200.0,0.00046969,37]
[314232679,1708105847855,-84423.2449229,0.00046986,11]
[314232680,1708105847866,-1865.0,0.00046996,2]
[314232681,1708105847876,-2831.0,0.00046996,2]
[314232682,1708105847887,-842.0,0.00046996,2]
[314232683,1708105847897,-951.585,0.00046996,2]
[314232684,1708105847906,-216.0,0.00046996,2]
[314232685,1708105847916,-1231.0,0.00046996,2]
[314232686,1708105847928,-1949.0,0.00046996,2]
[314232687,1708105847939,-1254.0,0.00046996,2]
[314232688,1708105847948,-599.0,0.00046996,2]
[314232689,1708105847959,-429.0,0.00046996,2]
[314232690,1708105847970,-858.0,0.00046996,2]
[314232691,1708105847981,-150.0,0.00046996,2]
[314232692,1708105847990,-2871.0,0.00046996,2]
[314232693,1708105848000,-1138.0,0.00046996,2]
[314232694,1708105848011,-321.0,0.00046996,2]
[314232695,1708105848021,-343.0,0.00046996,2]
[314232696,1708105848031,-454.0,0.00046996,2]
[314232697,1708105848040,-8164.0,0.00046996,2]
[314232698,1708105848051,-29647.156,0.00046996,2]
[314232699,1708105848060,-19846.0,0.00046996,2]
[314232700,1708105848070,-2927.0,0.00046996,2]
[314232701,1708105848083,-5181.105,0.00046996,2]
[314232702,1708105848093,-4098.0,0.00046996,2]
[314232703,1708105848102,-2289.0,0.00046996,2]
[314232704,1708105848113,-150.0,0.00046996,2]
[314232705,1708105848123,-150.0,0.00046996,2]
[314232706,1708105848132,-1037.0,0.00046996,2]
[314232707,1708105848141,-150.0,0.00046996,2]
[314232708,1708105848150,-150.0,0.00046996,2]
[314232709,1708105848160,-1524.24979349,0.00047078,2]
[314232710,1708105848171,-400.0,0.0004708,2]
[314232711,1708105848180,-152.0,0.00047207,4]
[314232712,1708105848190,-200.0,0.00047356,25]
[314232713,1708105848199,-154.02,0.000474,5]
[314232714,1708105848208,-154.02,0.000474,5]
[314232715,1708105848218,-154.02,0.000474,5]
[314232716,1708105848228,-154.02,0.000474,5]
[314232717,1708105848237,-154.02,0.000474,5]
[314232718,1708105848247,-154.02,0.000474,5]
[314232719,1708105848256,-154.02,0.000474,5]
[314232720,1708105848266,-154.02,0.000474,5]
[314232721,1708105848275,-1943.27841251,0.000474,2]
[314232722,1708105848284,-168.62,0.00047527,2]
[314232723,1708105848297,-157.63799995,0.00047645,9]
[314232724,1708105848306,-200.0,0.00047788,54]
[314232725,1708105848316,-200.0,0.00047788,47]
[314232726,1708105848326,-200.0,0.00047788,43]
[314232727,1708105848335,-200.0,0.00047788,41]
[314232728,1708105848346,-151.32,0.00047945,2]
[314232729,1708105848356,-6042.28294801,0.00048,10]
[314232730,1708105848366,-1000.0,0.00048,22]
[314232731,1708105848375,-2949.6,0.00048161,117]
[314232732,1708105848385,-1000.0,0.00048167,30]
[314232733,1708105848395,-1000.0,0.00048167,30]
[314232734,1708105848405,-1000.0,0.00048179,30]
[314232735,1708105848414,-1000.0,0.00048209,30]
[314232736,1708105848424,-1000.0,0.00048209,30]
[314232737,1708105848433,-1000.0,0.00048209,30]
[314232738,1708105848443,-699.46,0.00048243,2]
[314232739,1708105848453,-200.0,0.00048265,20]
[314232740,1708105848462,-206.0,0.00048441,31]
[314232741,1708105848472,-354.04,0.000486,2]
[314232742,1708105848481,-1000.0,0.00048642,4]
[314232743,1708105848491,-200.0,0.00048799,46]
[314232744,1708105848501,-200.0,0.00048799,45]
[314232745,1708105848510,-200.0,0.00048799,44]
[314232746,1708105848521,-200.0,0.00048799,43]
[314232747,1708105848530,-500.0,0.000488,7]
[314232748,1708105848540,-500.0,0.000488,7]
[314232749,1708105848549,-500.0,0.000488,7]
[314232750,1708105848559,-500.0,0.000488,7]
[314232751,1708105848568,-500.0,0.000488,7]
[314232752,1708105848578,-500.0,0.000488,7]
[314232753,1708105848587,-500.0,0.000488,7]
[314232754,1708105848597,-634.46,0.000488,7]
[314232755,1708105848608,-151.0,0.00048809,2]
[314232756,1708105848618,-150.0,0.00048999,60]
[314232757,1708105848628,-1401.95,0.00049,60]
[314232758,1708105848637,-1000.0,0.00049,2]
[314232759,1708105848647,-800.0,0.0004916,25]
[314232760,1708105848656,-157.63799995,0.00049173,10]
[314232761,1708105848666,-152.84202391,0.00049215,41]
[314232762,1708105848675,-218.3063305,0.00049215,25]
[314232763,1708105848685,-360.79121996,0.00049215,2]
[314232764,1708105848694,-3344.38752124,0.00049215,7]
[314232765,1708105870293,100000.0,0.00023,2]
[314232766,1708105870313,100000.0,0.00023,2]
[314232767,1708105870333,50000.0,0.00023,2]
[314232768,1708105870352,20000.0,0.00023,2]
[314232769,1708105870373,10000.0,0.00023,2]
[314232770,1708105870409,8000.0,0.00023,2]
[314232771,1708105870436,8000.0,0.00023,2]
[314232772,1708105870460,8000.0,0.00023,2]
[314232773,1708105870485,8000.0,0.00023,2]
[314232774,1708105870511,8000.0,0.00023,2]
[314232775,1708105870535,8000.0,0.00023,2]
[314232776,1708105870559,3000.0,0.00023,2]
[314232777,1708105870585,3000.0,0.00023,2]
[314232778,1708105870609,3000.0,0.00023,2]
[314232779,1708105870637,3000.0,0.00023,2]
[314232780,1708105870662,1300.0,0.00023,2]
[314232781,1708105870687,300.0,0.00023,2]
[314232782,1708105870714,8000.0,0.00023,2]
[314232783,1708105870739,4179547.1256972,0.00023,2]
[314232784,1708105882024,414.67659214,9e-05,2]
[314232785,1708105891597,-2000.0,0.0002509,2]
[314232786,1708105892656,-399.05760394,0.0002509,2]
[314232787,1708105892974,154.69854635,0.0001,2]
[314232788,1708105916646,450.0,0.00025,3]
[314232789,1708105947848,996.24384971,0.00015,2]
[314232790,1708105947869,895.08339124,0.00015,2]
[314232791,1708105967012,1104.91660876,0.0002509,2]
[314232792,1708105967035,2000.0,0.0002509,2]
[314232793,1708105967057,2000.0,0.0002509,2]
[314232794,1708105967078,370.43427819,0.0002509,2]
[314232796,1708105994568,1458.38335766,0.0001305,2]
[314232797,1708105995074,171.18236415,0.000101,2]
[314232798,1708105995095,68.81524504,0.000101,2]
[314232799,1708106032067,1931.18475496,0.00023,2]
[314232800,1708106032090,2000.0,0.00023,2]
[314232801,1708106032111,2000.0,0.00023,2]
[314232802,1708106032133,2000.0,0.00023,2]
[314232803,1708106032154,2000.0,0.00023,2]
[314232804,1708106032175,2000.0,0.00023,2]
[314232805,1708106032195,2000.0,0.00023,2]
[314232806,1708106032216,2000.0,0.00023,2]
[314232807,1708106032236,2000.0,0.00023,2]
[314232808,1708106032256,2000.0,0.00023,2]
[314232809,1708106032277,2000.0,0.00023,2]
[314232810,1708106032297,2000.0,0.00023,2]
[314232811,1708106032317,2000.0,0.00023,2]
[314232812,1708106032338,2000.0,0.00023,2]
[314232813,1708106032358,2000.0,0.00023,2]
[314232814,1708106032378,2000.0,0.00023,2]
[314232815,1708106032398,5820038.19771066,0.00023,2]
[314232816,1708106032420,24200.0,0.00023,2]
[314232817,1708106032443,1719446.07967584,0.00023,2]
[314232818,1708106032466,119203.42305792,0.00023,2]
[314232820,1708106049171,150.0,0.0002,2]
[314232821,1708106049194,32380.00235223,0.0002,2]
[314232822,1708106062337,150.0,0.00018,2]
[314232823,1708106062357,5.4152334,0.00018,2]
[314232824,1708106064443,150.0,0.000137,2]
[314232825,1708106064463,387.33762023,0.000137,2]
[314232827,1708106068448,41000.0,0.00025,30]
[314232828,1708106068475,6592.73982771,0.00025,30]
[314232829,1708106069010,-209.67659214,0.000232,2]
[314232830,1708106069488,-185.82586632,0.000232,2]
[314232831,1708106454882,-457.49112632,0.000241,2]
[314232832,1708106454903,-317.85030584,0.00025998,2]
[314232833,1708106454924,-184.95091843,0.00025999,2]
[314232834,1708106454944,-224.93716217,0.000261,2]
[314232835,1708106454965,-3643.31753463,0.000263,2]
[314232836,1708106454986,-178.58251086,0.000269,2]
[314232837,1708106455007,-500.0,0.00027,3]
[314232838,1708106455026,-2521.87044175,0.000272,2]
[314232842,1708106796467,150.0,0.0002,2]
[314232843,1708106796489,150.0,0.0002,2]
[314232844,1708106796509,150.0,0.0002,2]
[314232845,1708106796530,150.0,0.0002,2]
[314232846,1708106796550,150.0,0.0002,2]
[314232847,1708106796571,150.0,0.0002,2]
[314232848,1708106796591,150.0,0.0002,2]
[314232849,1708106796618,150.0,0.0002,2]
[314232850,1708106796639,150.0,0.0002,2]
[314232851,1708106796660,150.0,0.0002,2]
[314232852,1708106796680,150.0,0.0002,2]
[314232853,1708106796702,150.0,0.0002,2]
[314232854,1708106796727,150.0,0.0002,2]
[314232855,1708106796749,150.0,0.0002,2]
[314232856,1708106796772,239.55230814,0.0002,2]
[314232857,1708106796793,150.0,0.0002,2]
[314232858,1708106796821,743.64769186,0.0002,2]
[314232888,1708106943596,95.90461628,0.00022908,2]
[314232889,1708106943621,82.63742135,0.00022908,2]
[314232911,1708107031734,-173.16,0.00023515,2]
[314232912,1708107031744,-856.962508,0.00026655,2]
[314232913,1708107031754,-150.0,0.00027,2]
[314232914,1708107031763,-165.60000934,0.00027063,2]
[314232915,1708107031774,-1610.72483716,0.00027064,2]
[314232916,1708107031783,-1301.73868265,0.000272,2]
[314232917,1708107031794,-706.31,0.00027394,2]
[314232918,1708107031803,-150.0,0.00027548,2]
[314232919,1708107031813,-300.0,0.00027989,2]
[314232920,1708107031822,-17111.83023411,0.0002799,2]
[314232921,1708107031832,-1927.52,0.00027996,2]
[314232922,1708107031841,-763.40002823,0.00027996,3]
[314232923,1708107031851,-499.99,0.00027996,2]
[314232924,1708107031861,-4663.67786622,0.00027996,2]
[314232925,1708107031871,-740.13951687,0.00027999,2]
[314232926,1708107031880,-23324.55169227,0.00028,2]
[314232927,1708107031904,-349922.75439643,0.00028,2]
[314232928,1708107031916,-449.57833095,0.00028,2]
[314232929,1708107031930,-7955.59157849,0.00028,2]
[314232930,1708107033053,-414.72000001,0.00028,2]
[314232931,1708107033180,-12865.32011491,0.00028,2]
[314232932,1708107033189,-500.0,0.00028064,2]
[314232933,1708107033198,-150.0,0.00028096,2]
[314232934,1708107033208,-2937.10411449,0.000281,2]
[314232935,1708107033217,-200.0,0.00028157,2]
[314232936,1708107033226,-192.51,0.00028349,2]
[314232937,1708107033236,-250.0,0.00028873,2]
[314232938,1708107033245,-156.72,0.00029089,2]
[314232939,1708107033255,-156.72,0.00029279,2]
[314232940,1708107033264,-250.0,0.0002938,2]
[314232941,1708107033274,-250.0,0.0002938,2]
[314232942,1708107033283,-156.72,0.00029468,2]
[314232943,1708107033292,-202.29,0.00029573,2]
[314232944,1708107033302,-706.31,0.00029658,2]
[314232945,1708107033311,-156.72,0.00029658,2]
[314232946,1708107033321,-200.0,0.00029777,2]
[314232947,1708107033330,-156.72,0.00029847,2]
[314232948,1708107033340,-150.0,0.00029972,2]
[314232949,1708107033349,-3000.0,0.0003,2]
[314232950,1708107033359,-156.72,0.00030037,2]
[314232951,1708107033369,-593.64618954,0.000301,2]
[314232952,1708107033378,-178.58251082,0.00030212,2]
[314232953,1708107033387,-156.72,0.00030226,2]
[314232954,1708107033397,-200.0,0.00030329,120]
[314232955,1708107033406,-156.72,0.00030416,2]
[314232956,1708107033418,-156.72,0.00030605,2]
[314232957,1708107033430,-2724.57,0.00030623,2]
[314232958,1708107033443,-23900.0,0.00030792,2]
[314232959,1708107033452,-2000.0,0.00031003,2]
[314232960,1708107033462,-185.68,0.00031127,2]
[314232961,1708107033471,-763.40002822,0.00031184,5]
[314232962,1708107033482,-706.31,0.00031921,2]
[314232963,1708107033491,-2285.0,0.000327,3]
[314232964,1708107033501,-16184.0,0.000327,3]
[314232965,1708107033510,-1412.67810369,0.00033,2]
[314232966,1708107033520,-178.58251082,0.00033524,2]
[314232967,1708107033530,-706.31,0.00034185,2]
[314232968,1708107033539,-1472.79,0.00034257,2]
[314232969,1708107033548,-2705.0,0.00034257,2]
[314232970,1708107033557,-500.0,0.00034257,2]
[314232971,1708107033566,-1761.01,0.00034257,2]
[314232972,1708107033575,-160.0,0.0003436,2]
[314232973,1708107033584,-763.40002822,0.00034371,6]
[314232974,1708107033593,-155.65,0.00034481,2]
[314232975,1708107033602,-2065.43,0.00034521,2]
[314232976,1708107033612,-157.63799995,0.0003479,2]
[314232977,1708107033621,-1495.80034111,0.00034799,2]
[314232978,1708107033630,-1495.80034109,0.00034799,2]
[314232979,1708107033639,-1495.80034109,0.00034799,2]
[314232980,1708107033648,-3000.0,0.00035,2]
[314232981,1708107033657,-2628.74944998,0.00035088,2]
[314232982,1708107033667,-3517.6138449,0.0003509,2]
[314232983,1708107033681,-54239.04553962,0.0003509,2]
[314232984,1708107033690,-173.16,0.00035272,30]
[314232985,1708107033699,-2065.43,0.00035798,2]